bitfinex-derivatives/quotes_ETHF0:USTF0_20250624
["timestamp","ask_amount","ask_price","bid_price","bid_amount"]
[1750738404010,4.68727973,2398.1,2397.7,2.0818]
[1750738404210,4.68727973,2398.1,2397.8,2.0818]
[1750738404513,6.03367973,2398.1,2397.9,2.0818]
[1750738404713,0.83348,2398.0,2397.9,2.0818]
[1750738404912,0.83357,2397.8,2397.6,3.9113]
[1750738405114,0.83355,2397.9,2397.6,15.65791095]
[1750738405312,6.03367973,2398.1,2397.6,13.40590095]
[1750738405514,0.83352,2397.9,2397.8,2.0818]
[1750738414728,0.83355,2397.8,2397.7,0.6659]
[1750738414929,0.83355,2397.8,2397.7,10.16050095]
[1750738415130,0.83355,2397.8,2397.7,12.24230095]
[1750738415421,3.31223596,2397.8,2397.7,12.24230095]
[1750738416723,3.31223596,2397.8,2397.7,2.7477]
[1750738416919,3.31223596,2397.8,2397.7,0.6659]
[1750738417127,0.83369,2397.4,2397.3,2.1086]
[1750738417320,0.83369,2397.4,2397.3,12.29730095]
[1750738417522,0.83369,2397.4,2397.3,14.37910095]
[1750738418427,0.83369,2397.4,2397.3,12.95570095]
[1750738420423,0.83369,2397.4,2397.3,3.4611]
[1750738421128,0.83369,2397.4,2397.3,2.7759]
[1750738425938,3.31237596,2397.4,2397.3,2.7759]
[1750738426234,2.47868596,2397.4,2397.0,6.61]
[1750738426432,0.83379,2397.2,2397.0,16.76270095]
[1750738426729,2.47868596,2397.4,2397.3,2.0818]
[1750738426935,3.31237596,2397.4,2397.3,2.0818]
[1750738427131,3.31237596,2397.4,2397.0,8.06693]
[1750738427132,0.83376,2397.3,2397.0,8.06693]
[1750738427330,0.83373,2397.3,2397.1,0.83377]
[1750738427631,0.83373,2397.3,2397.2,2.0818]
[1750738428033,0.8337,2397.4,2397.2,11.57640095]
[1750738428228,0.8337,2397.4,2397.3,2.0818]
[1750738433936,0.8337,2397.4,2397.3,2.7881]
[1750738434138,0.8337,2397.4,2397.3,4.1839]
[1750738438251,0.8337,2397.4,2397.3,13.67850095]
[1750738438442,2.47868596,2397.6,2397.3,13.67850095]
[1750738438640,0.83367,2397.5,2397.4,3.4006]
[1750738438841,0.83367,2397.5,2397.4,4.116]
[1750738439044,0.83367,2397.5,2397.4,2.0342]
[1750738439237,3.2078,2397.7,2397.4,13.61060095]
[1750738439438,4.04139,2397.7,2397.6,2.0818]
[1750738439638,0.83359,2397.7,2397.6,2.0818]
[1750738439839,0.83362,2397.6,2397.5,1.3188]
[1750738440040,0.83362,2397.6,2397.5,10.81340095]
[1750738440243,0.83362,2397.6,2397.5,12.89520095]
[1750738441044,0.83362,2397.6,2397.5,11.57640095]
[1750738441446,3.31230596,2397.6,2397.5,11.57640095]
[1750738443755,0.83366,2397.5,2397.4,0.7154]
[1750738444048,0.83366,2397.5,2397.4,12.29180095]
[1750738444645,0.83366,2397.5,2397.4,10.21000095]
[1750738444849,0.83366,2397.5,2397.4,12.29180095]
[1750738445041,3.31233596,2397.6,2397.4,12.29180095]
[1750738445239,3.31230596,2397.6,2397.5,2.0818]
[1750738445440,3.31230596,2397.6,2397.5,3.4944]
[1750738446252,0.83362,2397.6,2397.5,3.4944]
[1750738447247,0.83362,2397.6,2397.5,12.98900095]
[1750738447750,0.83366,2397.5,2397.4,0.7154]
[1750738448051,0.83369,2397.4,2397.3,3.2078]
[1750738448257,3.31237596,2397.4,2397.3,5.9657]
[1750738449446,0.8338,2397.1,2397.0,1.66044503]
[1750738449647,0.8338,2397.1,2397.0,11.15504598]
[1750738449855,0.8338,2397.1,2397.0,11.57640095]
[1750738451358,0.8338,2397.1,2397.0,2.0818]
[1750738452856,0.8338,2397.1,2397.0,11.57640095]
[1750738454151,0.83378,2397.2,2397.0,13.83943095]
[1750738454358,0.83378,2397.2,2397.1,2.8033]
[1750738455251,0.83376,2397.2,2397.1,12.29790095]
[1750738455556,3.31244596,2397.2,2397.1,2.8033]
[1750738458954,3.31244596,2397.2,2397.1,2.0818]
[1750738459159,0.83383,2397.0,2396.9,3.8687]
[1750738459364,3.31251596,2397.0,2396.9,3.2078]
[1750738460656,0.8339,2396.8,2396.7,1.3603]
[1750738460857,3.31258596,2396.8,2396.7,10.15550095]
[1750738461057,3.31258596,2396.8,2396.7,12.23730095]
[1750738461258,0.83397,2396.7,2396.3,5.70230503]
[1750738461460,3.31265596,2396.6,2396.5,2.0818]
[1750738461851,3.31265596,2396.6,2396.4,0.7089]
[1750738462055,3.31265596,2396.6,2396.5,2.0818]
[1750738462662,2.47868596,2396.6,2396.3,3.2078]
[1750738462858,3.31266596,2396.6,2396.4,2.7907]
[1750738463062,3.31266596,2396.6,2396.4,0.7089]
[1750738463261,4.73107596,2396.6,2396.4,0.7089]
[1750738463465,0.834,2396.5,2396.4,0.7089]
[1750738463759,4.57278596,2396.6,2396.4,0.7089]
[1750738463965,2.47868596,2396.6,2396.4,0.7089]
[1750738464267,3.31267596,2396.6,2396.4,0.7089]
[1750738464962,4.04171,2396.8,2396.5,2.91579]
[1750738465167,0.8339,2396.8,2396.7,2.0818]
[1750738465366,0.834,2396.5,2396.4,0.7089]
[1750738466461,0.834,2396.5,2396.2,2.0929]
[1750738466462,0.83404,2396.4,2396.3,3.2078]
[1750738466963,0.83404,2396.4,2396.3,14.78420095]
[1750738467869,0.83402,2396.5,2396.3,12.41047095]
[1750738468169,0.83402,2396.5,2396.4,2.0818]
[1750738468567,0.83402,2396.5,2396.3,0.83407]
[1750738468867,0.83402,2396.5,2396.4,2.0818]
[1750738469358,0.83402,2396.5,2396.3,0.83407]
[1750738469564,0.83402,2396.5,2396.4,2.0818]
[1750738470168,0.83402,2396.5,2396.3,0.83407]
[1750738470359,0.83404,2396.4,2396.3,9.49460095]
[1750738470759,0.83402,2396.5,2396.3,12.41046095]
[1750738470957,0.83402,2396.5,2396.4,2.0818]
[1750738471364,0.83399,2396.6,2396.4,12.41043095]
[1750738471569,0.83399,2396.6,2396.5,2.0818]
[1750738471570,0.83397,2396.6,2396.5,2.0818]
[1750738472165,2.47868596,2396.6,2396.3,3.2078]
[1750738472370,2.47868596,2396.6,2396.4,2.0818]
[1750738472572,0.834,2396.5,2396.4,2.0818]
[1750738472772,0.834,2396.5,2396.3,4.04185]
[1750738473071,0.834,2396.5,2396.4,2.91584]
[1750738473280,0.834,2396.5,2396.4,2.0818]
[1750738473466,0.83414,2396.1,2396.0,3.2078]
[1750738473674,0.83414,2396.1,2396.0,12.70240095]
[1750738473867,0.83414,2396.1,2396.0,3.2078]
[1750738474966,3.31282596,2396.1,2396.0,3.2078]
[1750738475771,0.83421,2395.9,2395.8,0.6929]
[1750738475966,0.83425,2395.8,2395.7,3.2078]
[1750738476172,0.83425,2395.8,2395.7,5.2896]
[1750738477374,0.83425,2395.8,2395.7,14.78420095]
[1750738478072,0.83425,2395.8,2395.7,5.2896]
[1750738478371,0.83425,2395.8,2395.7,3.2078]
[1750738478574,3.64885,2395.8,2395.7,3.2078]
[1750738479672,0.83438,2395.5,2395.4,3.2078]
[1750738479866,3.31302596,2395.6,2395.4,3.2078]
[1750738480067,7.40926,2395.8,2395.7,2.0818]
[1750738480371,2.08534,2396.2,2395.4,12.70240095]
[1750738480372,0.83432,2395.6,2395.5,1.3286]
[1750738480675,0.83431,2395.7,2395.6,2.0818]
[1750738480875,0.83431,2395.7,2395.6,2.7532]
[1750738481077,11.16618596,2396.0,2395.6,12.24780095]
[1750738481378,3.31293596,2395.8,2395.7,2.0818]
[1750738483669,0.83425,2395.8,2395.7,12.95620095]
[1750738486375,2.47868596,2395.9,2395.7,12.95620095]
[1750738486678,3.31293596,2395.9,2395.8,3.4062]
[1750738487881,3.31293596,2395.9,2395.8,2.0818]
[1750738490078,0.83421,2395.9,2395.8,11.57640095]
[1750738490574,0.83421,2395.9,2395.8,12.99510095]
[1750738490773,0.8342,2396.0,2395.8,12.99510095]
[1750738490974,0.8342,2396.0,2395.9,3.5005]
[1750738491582,0.83417,2396.1,2395.9,3.5005]
[1750738491879,0.83417,2396.1,2396.0,2.0818]
[1750738492074,0.83417,2396.1,2396.0,2.7997]
[1750738492275,0.83417,2396.1,2396.0,0.7179]
[1750738492475,0.83417,2396.1,2396.0,12.29430095]
[1750738493978,0.83425,2395.8,2395.7,3.2078]
[1750738494180,0.83425,2395.8,2395.7,13.42030095]
[1750738494376,0.83425,2395.8,2395.7,15.50210095]
[1750738495799,3.31293596,2395.8,2395.7,15.50210095]
[1750738497482,3.31293596,2395.8,2395.7,6.0075]
[1750738498485,3.31293596,2395.8,2395.7,2.7997]
[1750738500290,0.83435,2395.5,2395.4,11.2294]
[1750738500486,0.83435,2395.5,2395.4,5.2896]
[1750738503489,2.47868596,2395.8,2395.4,14.78420095]
[1750738503695,2.47868596,2395.8,2395.7,2.0818]
[1750738503696,3.31293596,2395.8,2395.7,2.0818]
[1750738503990,0.83432,2395.6,2395.5,1.4442]
[1750738504182,0.83435,2395.5,2395.4,12.70240095]
[1750738504790,0.83435,2395.5,2395.4,16.22840095]
[1750738505093,0.83431,2395.7,2395.5,0.83433]
[1750738505289,0.83427,2395.8,2395.7,2.0818]
[1750738505791,0.83427,2395.8,2395.4,14.36284598]
[1750738505792,0.83435,2395.5,2395.4,3.2078]
[1750738505991,0.83432,2395.6,2395.4,13.41510095]
[1750738506193,0.83431,2395.7,2395.4,15.69369095]
[1750738506393,0.83431,2395.7,2395.5,1.4442]
[1750738506594,0.83431,2395.7,2395.6,2.0818]
[1750738506794,5.68648596,2396.0,2395.6,2.0818]
[1750738506998,5.68648596,2396.0,2395.8,2.0818]
[1750738507192,0.83421,2395.9,2395.8,2.0818]
[1750738507389,0.83425,2395.8,2395.7,2.0711]
[1750738507897,0.83425,2395.8,2395.7,4.1529]
[1750738508588,3.31293596,2395.8,2395.7,2.7636]
[1750738508790,0.83433,2395.6,2395.4,5.43148]
[1750738509094,0.83433,2395.6,2395.4,15.60788095]
[1750738509397,0.83433,2395.6,2395.5,3.4711]
[1750738509798,0.83431,2395.7,2395.5,4.30545]
[1750738510095,0.83431,2395.7,2395.5,10.88390095]
[1750738510295,0.83431,2395.7,2395.6,3.4304]
[1750738510684,0.83431,2395.7,2395.6,12.92500095]
[1750738511493,0.83427,2395.8,2395.6,12.92500095]
[1750738511684,0.83427,2395.8,2395.7,1.3486]
[1750738511886,0.83427,2395.8,2395.7,3.4304]
[1750738513492,0.83423,2395.9,2395.7,3.4304]
[1750738513689,0.83423,2395.9,2395.8,3.412]
[1750738514095,0.83423,2395.9,2395.8,1.3302]
[1750738515701,0.83423,2395.9,2395.8,3.412]
[1750738515903,0.83423,2395.9,2395.8,12.90660095]
[1750738516997,3.2078,2396.0,2395.8,12.90660095]
[1750738517297,4.04198,2396.0,2395.9,2.0818]
[1750738518003,2.47938886,2396.3,2395.9,11.57640095]
[1750738518196,0.83412,2396.2,2396.0,0.83416]
[1750738518396,3.2078,2396.4,2396.0,11.70296095]
[1750738518397,2.47868596,2396.3,2396.0,11.70296095]
[1750738518701,0.8341,2396.3,2396.0,10.86880095]
[1750738518902,5.63737482,2396.6,2396.2,2.9159]
[1750738519204,5.63737482,2396.6,2396.1,1.3742]
[1750738519205,0.83411,2396.2,2396.1,1.3742]
[1750738519500,0.83411,2396.2,2396.1,10.86880095]
[1750738519704,0.83425,2395.9,2395.7,6.578]
[1750738519896,0.83425,2395.8,2395.7,9.49460095]
[1750738520299,0.83425,2395.8,2395.7,11.57640095]
[1750738520709,3.87048596,2396.1,2395.7,11.57640095]
[1750738520903,3.87048596,2396.1,2395.8,2.0818]
[1750738521406,0.83421,2395.9,2395.8,2.7512]
[1750738522094,0.83428,2395.7,2395.6,0.7203]
[1750738522294,3.31296596,2395.7,2395.6,10.88430095]
[1750738522499,3.31296596,2395.7,2395.6,12.96610095]
[1750738522701,0.83422,2395.9,2395.6,13.80040095]
[1750738522905,0.83425,2395.8,2395.7,2.0818]
[1750738523103,2.47868596,2395.7,2395.3,0.7007]
[1750738523307,0.83432,2395.6,2395.5,2.0818]
[1750738523609,2.18422,2395.6,2395.5,2.0818]
[1750738523902,0.83439,2395.4,2395.3,1.4113]
[1750738524207,0.83439,2395.4,2395.3,10.90590095]
[1750738524397,0.83439,2395.4,2395.3,12.98770095]
[1750738526711,0.83437,2395.5,2395.3,12.98770095]
[1750738526914,0.83437,2395.5,2395.4,2.0818]
[1750738529112,3.31305596,2395.5,2395.4,2.0818]
[1750738530509,3.31303596,2395.5,2395.4,2.0818]
[1750738530710,6.579,2395.7,2395.4,2.0818]
[1750738530904,0.83436,2395.5,2395.3,0.7106]
[1750738531206,0.83436,2395.5,2395.2,3.2078]
[1750738531404,3.31307596,2395.4,2395.3,2.0818]
[1750738531603,3.98517596,2395.4,2395.3,2.0818]
[1750738532315,3.31307596,2395.4,2395.3,2.0818]
[1750738532807,0.83439,2395.4,2395.3,2.0818]
[1750738533014,3.86918596,2395.6,2395.3,2.0818]
[1750738533015,0.83437,2395.5,2395.3,2.0818]
[1750738533208,4.70352596,2395.6,2395.4,2.0818]
[1750738533512,3.31302596,2395.6,2395.4,2.0818]
[1750738533714,3.31302596,2395.6,2395.5,0.6977]
[1750738534507,0.83434,2395.6,2395.5,0.6977]
[1750738534901,3.9262,2395.9,2395.5,12.27410095]
[1750738535102,0.83424,2395.9,2395.8,2.0818]
[1750738535508,0.83425,2395.8,2395.6,1.54201]
[1750738535708,0.83425,2395.8,2395.6,2.95691]
[1750738535909,0.83423,2395.9,2395.7,2.0818]
[1750738536213,0.83423,2395.9,2395.8,2.0818]
[1750738536511,4.04203,2395.9,2395.8,2.0818]
[1750738536716,0.83428,2395.8,2395.6,2.1226]
[1750738536915,0.83428,2395.8,2395.6,11.61720095]
[1750738537214,0.83428,2395.8,2395.7,2.0818]
[1750738537415,0.83428,2395.7,2395.6,2.7895]
[1750738538718,0.83432,2395.6,2395.5,3.9055]
[1750738539017,3.31300596,2395.6,2395.5,3.9055]
[1750738539310,3.31300596,2395.6,2395.5,5.9873]
[1750738540115,3.31300596,2395.6,2395.5,3.2078]
[1750738545618,3.31300596,2395.6,2395.5,5.2896]
[1750738546918,5.22971886,2396.0,2395.5,5.2896]
[1750738546919,0.83431,2395.7,2395.5,14.78420095]
[1750738547217,0.83431,2395.7,2395.6,2.0818]
[1750738547619,0.83424,2395.9,2395.6,11.57640095]
[1750738547815,0.8342,2396.0,2395.9,2.0818]
[1750738548025,4.04193,2396.2,2396.1,2.0818]
[1750738548213,0.83416,2396.1,2395.8,5.48645]
[1750738548410,0.83416,2396.1,2395.9,1.4444]
[1750738548607,0.83416,2396.1,2396.0,2.0818]
[1750738549012,0.83416,2396.1,2396.0,11.57640095]
[1750738549207,3.31284596,2396.1,2396.0,13.02080095]
[1750738549426,3.31284596,2396.1,2396.0,11.57640095]
[1750738550525,2.47868596,2396.5,2396.0,11.57640095]
[1750738550710,0.83402,2396.5,2396.4,2.0818]
[1750738552625,13.09947596,2396.6,2396.4,2.0818]
[1750738552826,0.834,2396.5,2396.4,2.0818]
[1750738553023,13.09947596,2396.6,2396.4,2.0818]
[1750738553221,5.68648596,2396.6,2396.5,2.0818]
[1750738553613,6.52045596,2396.6,2396.3,2.22546]
[1750738553818,4.04177,2396.6,2396.5,2.0818]
[1750738554218,4.04177,2396.6,2396.5,0.6967]
[1750738555926,3.2078,2396.6,2396.5,2.7785]
[1750738556321,4.04177,2396.6,2396.5,2.7785]
[1750738558330,4.04177,2396.6,2396.5,0.6967]
[1750738558627,0.83407,2396.3,2396.2,1.3455]
[1750738558831,3.31275596,2396.3,2396.2,10.84010095]
[1750738559029,3.31275596,2396.3,2396.2,2.7413]
[1750738559223,2.08528,2396.2,2395.8,3.2078]
[1750738559424,3.31289596,2395.9,2395.8,5.2896]
[1750738560028,2.47868596,2395.9,2395.8,5.2896]
[1750738560429,2.47868596,2395.9,2395.8,15.61845095]
[1750738560630,0.83421,2395.9,2395.8,14.78420095]
[1750738560832,2.47868596,2396.1,2395.8,14.78420095]
[1750738561031,3.31289596,2395.9,2395.8,12.70240095]
[1750738561433,3.31289596,2395.9,2395.8,14.78420095]
[1750738562529,3.31289596,2395.9,2395.8,5.2896]
[1750738562730,0.83432,2395.6,2395.5,0.6773]
[1750738563036,0.83432,2395.6,2395.5,10.17190095]
[1750738563335,0.83432,2395.6,2395.5,2.7591]
[1750738564334,0.6717,2395.8,2395.5,12.25370095]
[1750738564534,1.50595,2395.8,2395.7,2.0818]
[1750738564830,0.83432,2395.6,2395.5,10.17190095]
[1750738565333,0.83432,2395.6,2395.5,12.25370095]
[1750738567441,0.83432,2395.6,2395.5,2.7591]
[1750738568828,3.31299596,2395.7,2395.5,2.7591]
[1750738569025,3.31299596,2395.7,2395.6,2.0818]
[1750738569534,0.83432,2395.6,2395.5,0.6773]
[1750738570038,0.83432,2395.6,2395.5,2.7591]
[1750738573746,0.83435,2395.5,2395.4,3.2078]
[1750738573947,3.31303596,2395.5,2395.4,3.2078]
[1750738575642,0.83441,2395.4,2395.2,2.0682]
[1750738575836,0.83441,2395.4,2395.2,12.39726095]
[1750738576031,3.31307596,2395.5,2395.3,2.91622]
[1750738576247,3.31303596,2395.5,2395.4,2.0818]
[1750738576641,0.8344,2395.4,2395.2,2.90264]
[1750738576946,0.8344,2395.4,2395.2,12.39724095]
[1750738577149,0.8344,2395.4,2395.3,2.0818]
[1750738577850,0.8344,2395.4,2395.3,11.57640095]
[1750738582555,3.31306596,2395.5,2395.3,12.41081095]
[1750738582752,3.31306596,2395.5,2395.4,2.0818]
[1750738583254,0.8344,2395.4,2395.2,2.90263]
[1750738583556,0.8344,2395.4,2395.2,12.39723095]
[1750738583752,0.8344,2395.4,2395.3,2.0818]
[1750738584051,4.27188867,2395.4,2395.3,2.0818]
[1750738585152,4.27188867,2395.4,2395.2,0.7207]
[1750738585153,0.83442,2395.3,2395.2,0.7207]
[1750738585546,1.79376698,2395.3,2395.2,2.8025]
[1750738586857,1.79376698,2395.3,2395.2,2.0818]
[1750738587163,2.46856698,2395.3,2395.2,2.0818]
[1750738588661,0.95934698,2395.3,2394.8,10.62038]
[1750738588864,0.95934698,2395.2,2395.1,2.0818]
[1750738589257,0.83453,2395.0,2394.9,0.6824]
[1750738589563,0.83453,2395.0,2394.9,10.17700095]
[1750738589759,0.83453,2395.0,2394.9,2.7642]
[1750738592259,1.79560394,2395.0,2394.9,2.7642]
[1750738592660,0.83456,2394.9,2394.8,3.2078]
[1750738592856,0.83456,2394.9,2394.8,3.93]
[1750738593057,0.83456,2394.9,2394.8,6.0118]
[1750738593559,0.83456,2394.9,2394.8,6.8464]
[1750738593758,2.47868596,2395.1,2394.8,6.0118]
[1750738594065,0.83456,2394.9,2394.8,3.93]
[1750738594569,0.83456,2394.9,2394.8,6.0118]
[1750738595163,2.47868596,2395.1,2394.8,15.50640095]
[1750738595470,0.83451,2395.1,2395.0,2.0818]
[1750738595867,1.79501754,2395.1,2395.0,11.57640095]
[1750738596068,1.79501754,2395.1,2395.0,12.26300095]
[1750738597566,0.83456,2394.9,2394.8,3.93]
[1750738597869,0.83456,2394.9,2394.8,13.42460095]
[1750738598071,0.83456,2394.9,2394.8,15.50640095]
[1750738598270,0.83456,2394.9,2394.8,16.34100095]
[1750738598461,0.83456,2394.9,2394.8,15.50640095]
[1750738599263,0.83456,2394.9,2394.8,7.4633]
[1750738600073,0.83456,2394.9,2394.8,6.0118]
[1750738600466,0.83455,2395.0,2394.8,6.84638]
[1750738600666,0.83455,2395.0,2394.9,2.0818]
[1750738600965,0.83455,2395.0,2394.9,3.5333]
[1750738601167,1.79508921,2395.0,2394.9,3.5333]
[1750738601468,0.83455,2395.0,2394.9,2.0818]
[1750738601772,1.79506938,2395.0,2394.9,2.0818]
[1750738602467,0.83456,2394.9,2394.8,3.93]
[1750738602865,0.83456,2394.9,2394.8,6.0118]
[1750738603173,0.6681,2395.4,2394.8,17.98508691]
[1750738603373,0.83449,2395.2,2395.1,2.0818]
[1750738603566,1.79498943,2395.2,2395.1,2.0818]
[1750738604673,0.83452,2395.1,2394.9,2.24246]
[1750738604874,0.83452,2395.1,2394.9,11.73706095]
[1750738605178,0.83452,2395.1,2395.0,2.0818]
[1750738605573,1.79526836,2395.1,2395.0,2.0818]
[1750738607776,1.79523836,2395.1,2395.0,2.0818]
[1750738607977,0.96074836,2395.1,2395.0,2.91633]
[1750738608176,1.79523836,2395.1,2395.0,2.0818]
[1750738608779,1.79523836,2395.1,2395.0,4.23383]
[1750738608973,0.96074836,2395.1,2395.0,4.23383]
[1750738609173,1.79523836,2395.1,2395.0,3.3993]
[1750738611178,1.79523836,2395.1,2395.0,2.0818]
[1750738611377,4.27392432,2395.1,2395.0,2.0818]
[1750738611878,4.27392432,2395.1,2394.8,3.2078]
[1750738611879,0.83456,2394.9,2394.8,3.2078]
[1750738612081,0.83456,2394.9,2394.8,12.70240095]
[1750738612278,1.79530836,2394.9,2394.8,14.78420095]
[1750738612878,1.79530836,2394.9,2394.8,15.61880095]
[1750738614383,0.96074836,2394.9,2394.8,15.61880095]
[1750738615870,0.96074836,2394.9,2394.8,17.04337095]
[1750738616875,1.79530836,2394.9,2394.8,14.78420095]
[1750738617073,4.27399432,2394.9,2394.8,5.2896]
[1750738618475,0.83467,2394.6,2394.5,3.2078]
[1750738618679,0.83467,2394.6,2394.5,12.70240095]
[1750738618879,1.79541836,2394.6,2394.5,14.78420095]
[1750738619168,1.79541836,2394.6,2394.5,3.2078]
[1750738619374,0.83477,2394.3,2394.2,3.2078]
[1750738619668,0.83477,2394.3,2394.2,5.2896]
[1750738619669,4.27420432,2394.3,2394.2,5.2896]
[1750738619869,3.43943432,2394.3,2393.9,3.2078]
[1750738620072,3.31352596,2394.1,2394.0,2.0818]
[1750738620273,4.27427432,2394.1,2394.0,2.0818]
[1750738620476,0.83487,2394.0,2393.9,3.2078]
[1750738620677,5.59524836,2394.0,2393.5,2.49066754]
[1750738620883,2.47868596,2393.6,2393.3,0.6804]
[1750738621083,1.79820001,2393.5,2393.3,10.17500095]
[1750738621278,0.96315001,2393.4,2393.3,9.49460095]
[1750738621784,2.47868596,2393.6,2393.3,11.57640095]
[1750738621988,2.47868596,2393.6,2393.5,2.0818]
[1750738622282,3.31369596,2393.6,2393.5,2.0818]
[1750738622481,0.83493,2393.9,2393.6,0.83498]
[1750738622681,2.47868596,2394.0,2393.8,2.0818]
[1750738622880,1.79420866,2393.9,2393.8,2.0818]
[1750738623580,3.31357596,2394.0,2393.8,2.0818]
[1750738623784,0.83491,2393.9,2393.8,2.0818]
[1750738623983,3.31357596,2394.0,2393.8,2.0818]
[1750738624379,0.83491,2393.9,2393.8,2.0818]
[1750738624580,1.3882,2394.1,2393.9,0.83491]
[1750738624785,0.83472,2394.5,2394.0,2.0818]
[1750738624978,2.47868596,2394.5,2394.3,2.0818]
[1750738625181,3.31338596,2394.5,2394.3,2.0818]
[1750738625879,3.31338596,2394.5,2394.4,2.0818]
[1750738626386,2.47868596,2394.5,2394.2,1.49898]
[1750738626574,2.47868596,2394.5,2394.4,2.0818]
[1750738626777,4.04247,2394.6,2394.4,2.0818]
[1750738626978,2.47868596,2394.5,2394.4,9.49460095]
[1750738627178,2.47868596,2394.5,2394.4,11.57640095]
[1750738628381,3.31338596,2394.5,2394.4,11.57640095]
[1750738629687,2.47868596,2394.5,2394.4,2.0818]
[1750738629889,3.31341596,2394.5,2394.4,2.0818]
[1750738630386,2.47868596,2394.5,2394.4,11.57640095]
[1750738630576,3.31338596,2394.5,2394.4,11.57640095]
[1750738631179,2.47868596,2394.5,2394.4,11.57640095]
[1750738631385,2.47868596,2394.6,2394.4,12.41113095]
[1750738631586,3.31335596,2394.6,2394.5,2.0818]
[1750738633191,4.27246231,2394.6,2394.5,2.0818]
[1750738633486,4.27249942,2394.6,2394.5,2.0818]
[1750738633690,4.27249569,2394.6,2394.5,2.0818]
[1750738633890,3.31335596,2394.6,2394.5,2.0818]
[1750738634085,2.47868596,2394.6,2394.5,11.57640095]
[1750738634993,2.47868596,2394.6,2394.5,12.88880095]
[1750738635589,3.31335596,2394.6,2394.5,12.88880095]
[1750738635990,2.47868596,2394.6,2394.3,0.6722]
[1750738636185,3.31342596,2394.4,2394.3,2.754]
[1750738636380,2.47868596,2394.4,2394.3,2.754]
[1750738636581,3.31342596,2394.4,2394.3,2.754]
[1750738637495,0.8349,2394.0,2393.8,3.2078]
[1750738637695,0.83487,2394.0,2393.9,2.0818]
[1750738637895,3.31355596,2394.0,2393.9,2.0818]
[1750738638101,2.47868596,2394.2,2393.9,2.0818]
[1750738638300,0.83484,2394.1,2394.0,2.0818]
[1750738638802,0.83487,2394.0,2393.9,1.3647]
[1750738638998,0.83487,2394.0,2393.9,10.85930095]
[1750738639191,0.83487,2394.0,2393.9,12.94110095]
[1750738640001,0.83485,2394.1,2393.9,12.94110095]
[1750738640190,0.83487,2394.0,2393.9,10.85930095]
[1750738640390,0.83487,2394.0,2393.9,9.49460095]
[1750738640695,0.83487,2394.0,2393.9,11.57640095]
[1750738641896,3.31355596,2394.0,2393.9,11.57640095]
[1750738642590,2.47868596,2394.2,2393.9,11.57640095]
[1750738642894,3.31355596,2394.0,2393.9,9.49460095]
[1750738643087,3.31355596,2394.0,2393.5,3.2078]
[1750738643088,2.47868596,2394.0,2393.5,3.2078]
[1750738643287,0.83501,2393.6,2393.5,12.70240095]
[1750738643701,0.83501,2393.6,2393.5,14.78420095]
[1750738643996,0.835,2393.7,2393.5,14.78420095]
[1750738644193,0.83501,2393.6,2393.5,12.70240095]
[1750738644395,0.83501,2393.6,2393.2,0.83513]
[1750738644396,0.8351,2393.4,2393.2,3.2078]
[1750738644694,3.43855709,2393.6,2393.2,12.70240095]
[1750738644695,2.47868596,2393.6,2393.2,12.70240095]
[1750738644889,0.83508,2393.5,2393.3,0.6702]
[1750738645084,0.83508,2393.5,2393.3,1.3751]
[1750738645284,3.31372596,2393.6,2393.4,2.0818]
[1750738645501,0.83504,2393.6,2393.5,2.0818]
[1750738645889,0.83504,2393.6,2393.5,11.57640095]
[1750738646204,0.83493,2393.9,2393.6,0.835]
[1750738646699,0.83493,2393.9,2393.8,2.0818]
[1750738646890,0.8349,2394.0,2393.8,2.0818]
[1750738647091,0.8349,2394.0,2393.8,10.19760095]
[1750738647291,0.83486,2394.1,2393.9,2.0818]
[1750738647593,0.83486,2394.1,2394.0,2.0818]
[1750738647798,1.79551374,2394.1,2394.0,2.0818]
[1750738647994,0.83487,2394.0,2393.8,3.9108]
[1750738648298,0.83481,2394.2,2394.0,2.0818]
[1750738648497,0.83481,2394.2,2393.9,0.83489]
[1750738648498,0.83481,2394.2,2394.1,2.0818]
[1750738648691,0.83481,2394.2,2394.1,11.57640095]
[1750738648888,2.47868596,2394.2,2394.1,11.57640095]
[1750738649089,3.31349596,2394.2,2394.1,11.57640095]
[1750738651099,2.47868596,2394.2,2394.1,11.57640095]
[1750738651303,9.7858,2394.5,2394.1,12.41124095]
[1750738651304,3.31344596,2394.4,2394.1,12.41124095]
[1750738651500,0.96162384,2394.3,2394.2,2.8101]
[1750738651696,1.79639384,2394.3,2394.2,2.8101]
[1750738653406,0.96162384,2394.3,2394.2,2.8101]
[1750738653803,1.79639384,2394.3,2394.2,2.8101]
[1750738655805,0.96162384,2394.3,2394.2,2.8101]
[1750738656008,1.79639384,2394.3,2394.2,2.8101]
[1750738657706,0.96162384,2394.3,2394.2,2.8101]
[1750738658007,0.96162384,2394.3,2394.2,3.64491]
[1750738658306,0.96162384,2394.3,2394.2,2.8101]
[1750738658608,0.96162384,2394.3,2394.2,13.13951095]
[1750738658816,0.96162384,2394.3,2394.2,14.57161095]
[1750738660001,0.96162384,2394.3,2394.2,12.30470095]
[1750738660201,1.79639384,2394.3,2394.2,12.30470095]
[1750738661808,0.96162384,2394.3,2394.2,13.13951095]
[1750738662311,0.96162384,2394.3,2394.2,12.30470095]
[1750738662609,0.96162384,2394.3,2394.2,13.13951095]
[1750738663599,0.96162384,2394.3,2394.2,14.48421095]
[1750738664112,1.79639384,2394.3,2394.2,12.30470095]
[1750738664617,0.96162384,2394.3,2394.2,2.8101]
[1750738664811,0.96162384,2394.3,2394.2,13.13951095]
[1750738665010,0.96162384,2394.3,2394.2,14.48421095]
[1750738665214,2.47868596,2394.4,2394.3,0.83477]
[1750738665415,2.47938886,2395.0,2394.3,4.1086]
[1750738665608,0.83444,2395.3,2394.9,5.2896]
[1750738665913,0.83444,2395.3,2395.2,2.0818]
[1750738666307,0.83446,2395.2,2395.0,2.97911]
[1750738666507,0.83444,2395.3,2395.2,2.0818]